{"text_format":"3","workbook":"xlsx","n_sheets":2,"sheets":["Souhrn rozpočtu","Podrobnosti o rozpočtu"],"not_rendered":{"images":1,"defined_names":1},"read":"whole","date_system":"1900"}

{"sheet":"Souhrn rozpočtu","index":0,"n_rows":28,"n_cols":7,"rows_kept":28}
[{"$nulls":6}," "]
[]
[null,"CELKOVÝ SVATEBNÍ ROZPOČET",{"v":20000,"d":"20,000 Kč"}]
[]
[null,"VÝDAJE","Přidělené prostředky \n%","Přidělený rozpočet","Předpokládané \nnáklady","Skutečné \nnáklady"]
[null,"Hostina",{"v":0.5,"d":"50%"},{"$f":"Celkový_Svatební_Rozpočet*'Souhrn rozpočtu'!$C6","v":{"v":10000,"d":"10,000 Kč"}},{"$f":"Tabulka_Hostina[[#Totals],[Odhadované náklady]]","v":{"v":0,"d":"0 Kč"}},{"$f":"Tabulka_Hostina[[#Totals],[Skutečné náklady]]","v":{"v":0,"d":"0 Kč"}}]
[null,"Oděv",{"v":0.1,"d":"10%"},{"$f":"Celkový_Svatební_Rozpočet*'Souhrn rozpočtu'!$C7","v":{"v":2000,"d":"2,000 Kč"}},{"$f":"Tabulka_Oblečení[[#Totals],[Odhadované náklady]]","v":{"v":0,"d":"0 Kč"}},{"$f":"Tabulka_Oblečení[[#Totals],[Skutečné náklady]]","v":{"v":0,"d":"0 Kč"}}]
[null,"Květiny a dekorace",{"v":0.1,"d":"10%"},{"$f":"Celkový_Svatební_Rozpočet*'Souhrn rozpočtu'!$C8","v":{"v":2000,"d":"2,000 Kč"}},{"$f":"Tabulka_KvětinyADekorace[[#Totals],[Odhadované náklady]]","v":{"v":0,"d":"0 Kč"}},{"$f":"Tabulka_KvětinyADekorace[[#Totals],[Skutečné náklady]]","v":{"v":0,"d":"0 Kč"}}]
[null,"Hudba",{"v":0.1,"d":"10%"},{"$f":"Celkový_Svatební_Rozpočet*'Souhrn rozpočtu'!$C9","v":{"v":2000,"d":"2,000 Kč"}},{"$f":"Tabulka_Hudba[[#Totals],[Odhadované náklady]]","v":{"v":0,"d":"0 Kč"}},{"$f":"Tabulka_Hudba[[#Totals],[Skutečné náklady]]","v":{"v":0,"d":"0 Kč"}}]
[null,"Fotky a video",{"v":0.1,"d":"10%"},{"$f":"Celkový_Svatební_Rozpočet*'Souhrn rozpočtu'!$C10","v":{"v":2000,"d":"2,000 Kč"}},{"$f":"Tabulka_FotografieAVideo[[#Totals],[Odhadované náklady]]","v":{"v":0,"d":"0 Kč"}},{"$f":"Tabulka_FotografieAVideo[[#Totals],[Skutečné náklady]]","v":{"v":0,"d":"0 Kč"}}]
[null,"Laskavosti a dary",{"v":0.03,"d":"3%"},{"$f":"Celkový_Svatební_Rozpočet*'Souhrn rozpočtu'!$C11","v":{"v":600,"d":"600 Kč"}},{"$f":"Tabulka_SuvenýryADárky[[#Totals],[Odhadované náklady]]","v":{"v":0,"d":"0 Kč"}},{"$f":"Tabulka_SuvenýryADárky[[#Totals],[Skutečné náklady]]","v":{"v":0,"d":"0 Kč"}}]
[null,"Obřad",{"v":0.02,"d":"2%"},{"$f":"Celkový_Svatební_Rozpočet*'Souhrn rozpočtu'!$C12","v":{"v":400,"d":"400 Kč"}},{"$f":"Tabulka_Obřad[[#Totals],[Odhadované náklady]]","v":{"v":0,"d":"0 Kč"}},{"$f":"Tabulka_Obřad[[#Totals],[Skutečné náklady]]","v":{"v":0,"d":"0 Kč"}}]
[null,"Papírenské zboží",{"v":0.02,"d":"2%"},{"$f":"Celkový_Svatební_Rozpočet*'Souhrn rozpočtu'!$C13","v":{"v":400,"d":"400 Kč"}},{"$f":"Tabulka_PozvánkyAJiné[[#Totals],[Odhadované náklady]]","v":{"v":0,"d":"0 Kč"}},{"$f":"Tabulka_PozvánkyAJiné[[#Totals],[Skutečné náklady]]","v":{"v":0,"d":"0 Kč"}}]
[null,"Snubní prsteny",{"v":0.02,"d":"2%"},{"$f":"Celkový_Svatební_Rozpočet*'Souhrn rozpočtu'!$C14","v":{"v":400,"d":"400 Kč"}},{"$f":"Tabulka_SvatebníPrsteny[[#Totals],[Odhadované náklady]]","v":{"v":0,"d":"0 Kč"}},{"$f":"Tabulka_SvatebníPrsteny[[#Totals],[Skutečné náklady]]","v":{"v":0,"d":"0 Kč"}}]
[null,"Doprava",{"v":0.01,"d":"1%"},{"$f":"Celkový_Svatební_Rozpočet*'Souhrn rozpočtu'!$C15","v":{"v":200,"d":"200 Kč"}},{"$f":"Tabulka_Doprava[[#Totals],[Odhadované náklady]]","v":{"v":0,"d":"0 Kč"}},{"$f":"Tabulka_Doprava[[#Totals],[Skutečné náklady]]","v":{"v":0,"d":"0 Kč"}}]
[null,"Celkem",{"$f":"SUM(C6:C15)","v":{"v":1,"d":"100%"}},{"$f":"SUM(D6:D15)","v":{"v":20000,"d":"20,000 Kč"}},{"v":0,"d":"0 Kč"},{"v":0,"d":"0 Kč"}]
[]
[null,"PŘÍSPĚVKY"]
[null,"Zdroj financí","Příspěvek"]
[null,"Spoření",{"v":10000,"d":"10,000 Kč"}]
[null,"Máma a táta partnera 1",{"v":4000,"d":"4,000 Kč"}]
[null,"Prarodiče partnera 1",{"v":2000,"d":"2,000 Kč"}]
[null,"Máma a táta partnera 2",{"v":4000,"d":"4,000 Kč"}]
[null,"Prarodiče partnera 2",{"v":4000,"d":"4,000 Kč"}]
[null,"Další příspěvky",{"v":2000,"d":"2,000 Kč"}]
[null,"Celkem",{"$f":"SUBTOTAL(109,Tabulka_Příspěvků[Příspěvek])","v":{"v":26000,"d":"26,000 Kč"}}]
[]
[null,{"$f":"IF(Tabulka_Příspěvků[[#Totals],[Příspěvek]]<Celkový_Svatební_Rozpočet,\"Rozdíl k doplacení\",\"Dostupné nadbytečné fondy\")","v":"Dostupné nadbytečné fondy"},{"$f":"IF(Tabulka_Příspěvků[[#Totals],[Příspěvek]]<Celkový_Svatební_Rozpočet,Celkový_Svatební_Rozpočet-Tabulka_Příspěvků[[#Totals],[Příspěvek]],Tabulka_Příspěvků[[#Totals],[Příspěvek]]-Celkový_Svatební_Rozpočet)","v":{"v":6000,"d":"6,000 Kč"}}]

{"sheet":"Podrobnosti o rozpočtu","index":1,"n_rows":80,"n_cols":4,"rows_kept":80}
[]
[null,"HOSTINA","Odhadované náklady","Skutečné náklady"]
[null,"Místo konání a nájemné"]
[null,"Jídlo a služby"]
[null,"Nápoje"]
[null,"Dort"]
[null,"Různé poplatky"]
[null,"Celkem",{"$f":"SUBTOTAL(109,Tabulka_Hostina[Odhadované náklady])","v":{"v":0,"d":"0.00 Kč"}},{"$f":"SUBTOTAL(109,Tabulka_Hostina[Skutečné náklady])","v":{"v":0,"d":"0.00 Kč"}}]
[]
[null,"ODĚV","Odhadované náklady","Skutečné náklady"]
[null,"Smoking, oblek a/nebo šaty"]
[null,"Změny"]
[null,"Čelenka a závoj"]
[null,"Doplňky"]
[null,"Účes a make-up"]
[null,"Různé poplatky"]
[null,"Celkem",{"$f":"SUBTOTAL(109,Tabulka_Oblečení[Odhadované náklady])","v":{"v":0,"d":"0.00 Kč"}},{"$f":"SUBTOTAL(109,Tabulka_Oblečení[Skutečné náklady])","v":{"v":0,"d":"0.00 Kč"}}]
[]
[null,"KVĚTINY A DEKORACE","Odhadované náklady","Skutečné náklady"]
[null,"Květinová dekorace pro obřad"]
[null,"Květiny a košíčky pro družičky"]
[null,"Polštářek na prstýnky"]
[null,"Aranžované květiny"]
[null,"Květiny do knoflíkových dírek"]
[null,"Květiny na šaty"]
[null,"Dekorace na hostinu"]
[null,"Osvětlení"]
[null,"Různé poplatky"]
[null,"Celkem",{"$f":"SUBTOTAL(109,Tabulka_KvětinyADekorace[Odhadované náklady])","v":{"v":0,"d":"0.00 Kč"}},{"$f":"SUBTOTAL(109,Tabulka_KvětinyADekorace[Skutečné náklady])","v":{"v":0,"d":"0.00 Kč"}}]
[]
[null,"HUDBA","Odhadované náklady","Skutečné náklady"]
[null,"Hudebníci na obřad"]
[null,"Hudebníci na odpoledne"]
[null,"Skupina na hostinu, dýdžej nebo jiná zábava"]
[null,"Ozvučení nebo pronájem tanečního parketu"]
[null,"Různé poplatky"]
[null,"Celkem",{"$f":"SUBTOTAL(109,Tabulka_Hudba[Odhadované náklady])","v":{"v":0,"d":"0.00 Kč"}},{"$f":"SUBTOTAL(109,Tabulka_Hudba[Skutečné náklady])","v":{"v":0,"d":"0.00 Kč"}}]
[]
[null,"FOTKY A VIDEO","Odhadované náklady","Skutečné náklady"]
[null,"Fotografování"]
[null,"Video"]
[null,"Další výtisky a alba"]
[null,"Různé poplatky"]
[null,"Celkem",{"$f":"SUBTOTAL(109,Tabulka_FotografieAVideo[Odhadované náklady])","v":{"v":0,"d":"0.00 Kč"}},{"$f":"SUBTOTAL(109,Tabulka_FotografieAVideo[Skutečné náklady])","v":{"v":0,"d":"0.00 Kč"}}]
[]
[null,"LASKAVOSTI A DARY","Odhadované náklady","Skutečné náklady"]
[null,"Dárky na uvítanou"]
[null,"Dárky na oslavu"]
[null,"Různé poplatky"]
[null,"Celkem",{"$f":"SUBTOTAL(109,Tabulka_SuvenýryADárky[Odhadované náklady])","v":{"v":0,"d":"0.00 Kč"}},{"$f":"SUBTOTAL(109,Tabulka_SuvenýryADárky[Skutečné náklady])","v":{"v":0,"d":"0.00 Kč"}}]
[]
[null,"OBŘAD","Odhadované náklady","Skutečné náklady"]
[null,"Poplatek za prostory"]
[null,"Poplatek pro kněze nebo dar pro církev"]
[null,"Různé poplatky"]
[null,"Celkem",{"$f":"SUBTOTAL(109,Tabulka_Obřad[Odhadované náklady])","v":{"v":0,"d":"0.00 Kč"}},{"$f":"SUBTOTAL(109,Tabulka_Obřad[Skutečné náklady])","v":{"v":0,"d":"0.00 Kč"}}]
[]
[null,"PAPÍRENSKÉ ZBOŽÍ","Odhadované náklady","Skutečné náklady"]
[null,"Kartičky s datem"]
[null,"Pozvánky a odpovědi"]
[null,"Programy"]
[null,"Kartičky k zasedacímu pořádku a jmenovky na stůl"]
[null,"Jídelní lístky"]
[null,"Děkovné kartičky"]
[null,"Poštovné"]
[null,"Různé poplatky"]
[null,"Celkem",{"$f":"SUBTOTAL(109,Tabulka_PozvánkyAJiné[Odhadované náklady])","v":{"v":0,"d":"0.00 Kč"}},{"$f":"SUBTOTAL(109,Tabulka_PozvánkyAJiné[Skutečné náklady])","v":{"v":0,"d":"0.00 Kč"}}]
[]
[null,"SNUBNÍ PRSTENY","Odhadované náklady","Skutečné náklady"]
[null,"Snubní prsteny"]
[null,"Doplňky k prstenům"]
[null,"Celkem",{"$f":"SUBTOTAL(109,Tabulka_SvatebníPrsteny[Odhadované náklady])","v":{"v":0,"d":"0.00 Kč"}},{"$f":"SUBTOTAL(109,Tabulka_SvatebníPrsteny[Skutečné náklady])","v":{"v":0,"d":"0.00 Kč"}}]
[]
[null,"DOPRAVA","Odhadované náklady","Skutečné náklady"]
[null,"Pronájem hlavního auta"]
[null,"Pronájem auta pro hosty"]
[null,"Doprava pro hosty z daleka"]
[null,"Parkoviště s obsluhou"]
[null,"Různé poplatky"]
[null,"Celkem",{"$f":"SUBTOTAL(109,Tabulka_Doprava[Odhadované náklady])","v":{"v":0,"d":"0.00 Kč"}},{"$f":"SUBTOTAL(109,Tabulka_Doprava[Skutečné náklady])","v":{"v":0,"d":"0.00 Kč"}}]